{"text_format":"3","workbook":"xlsx","n_sheets":4,"sheets":["Jaloane","Foaie de parcurs","Despre","Date diagramă"],"not_rendered":{"charts":1,"defined_names":2},"read":"whole","date_system":"1900"}

{"sheet":"Jaloane","index":0,"n_rows":27,"n_cols":5,"rows_kept":27}
["Creați o Foaie de parcurs, introducând jaloane și activități importante în această foaie de lucru.\nTitlul acestei foi de lucru se află în celula C1. \nInformațiile despre cum să utilizați această foaie de lucru, inclusiv instrucțiunile pentru cititoarele de ecran se află în foaia de lucru Despre.\nContinuați să navigați în jos în coloana A pentru instrucțiuni suplimentare.",null,"Jaloane"]
["Titlurile de tabel se află în celulele C2 până la E2. Utilizați opțiunile Sortare și filtrare pentru a sorta sau a găsi anumite intrări.\nIntroduceți Jaloane cu date și setați o poziție pentru trasarea diagramei jalonului în tabel începând din celula C3.\nColoana B a fost ascunsă. A fost generată o diagramă pe baza acestor date care utilizează o bară de defilare pentru vizualizarea blocurilor cronologiei. Coloana B vă ajută să stabiliți ce jaloane să trasați sub formă de diagramă când bara de defilare este incrementată. \nAvertisment: Ștergerea sau modificarea conținutului coloanei B poate compromite integritatea diagramei încorporate în acest registru de lucru.","Nr.","Poziție","Dată","Jalon"]
["Introduceți Poziția pentru trasarea diagramei datei și jalonului în celula C1. Introduceți un număr pozitiv între 1 și 3 pentru a trasa diagrama deasupra cronologiei. Introduceți un număr negativ între 1 și 3 pentru a trasa diagrama sub cronologie.\nIntroduceți Data și Jalonul sau activitatea în coloana D și E din tabel.\nRepetați acest model pentru fiecare rând nou din tabel de la dreapta.\nDate eșantion sunt furnizate în rândurile 3 până la 26. Modificați sau ștergeți conținutului eșantion pentru a crea propria foaie de parcurs.\nContinuați cu celula A27 pentru instrucțiunile următoare.",{"$f":"ROW($A1)","v":1},1,{"$f":"TODAY()","v":"2018-06-29"},"Pornire"]
[null,{"$f":"ROW($A2)","v":2},-2,{"$f":"D3+10","v":"2018-07-09"},"Analiza problemelor\nactivitatea 1"]
[null,3,1,{"$f":"D4+20","v":"2018-07-29"},"Dezvoltare prezentare afacere\nactivitatea 1\nactivitatea 2"]
[null,4,-1,{"$f":"D5+30","v":"2018-08-28"},"Revizuire prezentare"]
[null,5,{"v":-0.5,"d":"-1"},{"$f":"D6+40","v":"2018-10-07"},"Exec start\nactivitatea 1\nactivitatea 2"]
[null,6,2,{"$f":"D7+50","v":"2018-11-26"},"Exec aliniere\nactivitatea 1\nactivitatea 2\nactivitatea 3"]
[null,7,{"v":0.5,"d":"1"},{"$f":"D8+60","v":"2019-01-25"},"Cumpărare de către un participant direct interesat"]
[null,8,-1,{"$f":"D9+70","v":"2019-04-05"},"Selecție resursă"]
[null,9,{"v":0.5,"d":"1"},{"$f":"D10+80","v":"2019-06-24"},"Creare echipă\nactivitatea 1 "]
[null,10,-2,{"$f":"D11+90","v":"2019-09-22"},"Start echipă\nactivitatea 1 \nactivitatea 2\nactivitatea 3\nactivitatea 4"]
[null,11,3,{"$f":"D12+100","v":"2019-12-31"},"Începere colectare date"]
[null,12,-1,{"$f":"D13+90","v":"2020-03-30"},"Analiza datelor"]
[null,13,1,{"$f":"D14+80","v":"2020-06-18"},"Proiectare"]
[null,14,1,{"$f":"D15+70","v":"2020-08-27"},"Demonstrația conceptului"]
[null,15,-3,{"$f":"D16+60","v":"2020-10-26"},"Testare și analiză"]
[null,16,-2,{"$f":"D17+50","v":"2020-12-15"},"Reproiectare"]
[null,17,2,{"$f":"D18+40","v":"2021-01-24"},"Redezvoltare"]
[null,18,-1,{"$f":"D19+30","v":"2021-02-23"},"Testare și analiză"]
[null,19,1,{"$f":"D20+20","v":"2021-03-15"},"Reproiectare"]
[null,20,-3,{"$f":"D21+10","v":"2021-03-25"},"Redezvoltare"]
[null,21,2,{"$f":"D22+20","v":"2021-04-14"},"Testare finală"]
[null,22,1,{"$f":"D23+30","v":"2021-05-14"},"Test beta"]
[null,23,-3,{"$f":"D24+40","v":"2021-06-23"},"Revizuire"]
[null,24,-2,{"$f":"D25+50","v":"2021-08-12"},"Lansare la Marketing"]
["Pentru a adăuga mai multe rânduri în tabelul Jaloanele foii de parcurs, inserați pur și simplu un rând nou deasupra acestuia.\nNu există instrucțiuni suplimentare în această foaie de lucru.",null,"Pentru a adăuga mai multe jaloane, inserați rânduri noi deasupra acestui rând."]

{"sheet":"Foaie de parcurs","index":1,"n_rows":3,"n_cols":4,"rows_kept":3}
["O diagramă care afișează jaloanele din foaia de lucru Jaloane se află în această foaie de lucru. \nAnii sunt indicați în celulele B2, C2 și D2 și au stilul Titlu 3 aplicat.\n10 jaloane sunt reprezentate în același timp într-o diagramă. \nUtilizați bara de defilare în celulele B4 până la D4 pentru a naviga prin foaia de parcurs.\nAnii cronologiei se află celulele B3 până la D3.\nNu există instrucțiuni suplimentare în această foaie de lucru."]
[]
[null,{"$f":"'Date diagramă'!B20","v":2018},{"$f":"'Date diagramă'!B21","v":""},{"$f":"'Date diagramă'!B22","v":2019}]

{"sheet":"Despre","index":2,"n_rows":5,"n_cols":1,"rows_kept":5}
["Despre acest registru de lucru"]
["Ghid pentru cititoarele de ecran"]
["Există 4 foi de lucru în acest registru de lucru. \n\nJaloane\nFoaie de parcurs\nDespre\nDate diagramă (ascuns)\n\nInstrucțiunile pentru fiecare foaie de lucru se află în coloana A, începând cu celula A1 a fiecărei foi de lucru. Acestea sunt scrise cu text ascuns. Fiecare pas vă îndrumă atunci când parcurgeți informațiile din acel rând. Fiecare pas continuă cu celula A2, A3 și așa mai departe, dacă nu există alte instrucțiuni explicite. De exemplu, textul instrucțiunii ar putea specifica să „continuați cu celula A6” pentru pasul următor. \n\nTextul ascuns nu se va imprima.\n\nPentru a elimina aceste instrucțiuni din orice foaie de lucru, pur și simplu ștergeți coloana A.\n"]
["Această foaie de parcurs utilizează poziții pentru a trasa diagrame de jaloane și activități. Pozițiile pot fi utilizate pentru a adăuga o pondere unui jalon sau unei activități. Pur și simplu ajustați valorile în funcție de ponderea pe care o preferați. De exemplu, jalonul/activitatea 3 poate avea o pondere mai mare decât jalonul/activitatea 2. Pentru a indica acest lucru în diagramă, pur și simplu faceți valoarea Poziție mai mare pentru jalonul/activitatea 3 decât pentru jalonul/activitatea 2.  \n"]
["Aceasta este ultima instrucțiune din această foaie de lucru."]

{"sheet":"Date diagramă","index":3,"n_rows":26,"n_cols":4,"rows_kept":26,"hidden":true}
["Datele pentru crearea de diagrame dinamice se află în această foaie de lucru. Nu ștergeți această foaie de lucru!\nȘtergerea acestei foi de lucru ar putea compromite capacitatea dinamică a registrului de lucru.","Nu ștergeți această foaie de lucru!"]
["Titlul pentru tabel se află în celula B2.","Conținut Diagramă dinamică"]
["Titlurile de tabel se află în celulele B3 până la D3. \nAcest tabel este actualizat automat pe baza conținutului introdus în foaia de lucru Jaloane.\nAvertisment: Modificarea sau ștergerea conținutului din acest tabel ar putea compromite capacitatea  de actualizare dinamică a diagramei Foaie de parcurs din foaia de lucru Foaie de parcurs.\nContinuați cu celula A15 pentru instrucțiunile următoare.","Dată","Evenimente","Poziție"]
[null,{"$f":"IFERROR(IF(LEN(Jaloane!D3)=0,\"\",INDEX(JaloaneFoaieDeParcurs[],Jaloane!$B3+$B$17,3)),\"\")","v":"2018-06-29"},{"$f":"IFERROR(IF(LEN(Jaloane!E3)=0,\"\",INDEX(JaloaneFoaieDeParcurs[],Jaloane!$B3+$B$17,4)),\"\")","v":"Pornire"},{"$f":"IFERROR(INDEX(JaloaneFoaieDeParcurs[],Jaloane!$B3+$B$17,2),\"\")","v":1}]
[null,{"$f":"IFERROR(IF(LEN(Jaloane!D4)=0,\"\",INDEX(JaloaneFoaieDeParcurs[],Jaloane!$B4+$B$17,3)),\"\")","v":"2018-07-09"},{"$f":"IFERROR(IF(LEN(Jaloane!E4)=0,\"\",INDEX(JaloaneFoaieDeParcurs[],Jaloane!$B4+$B$17,4)),\"\")","v":"Analiza problemelor\nactivitatea 1"},{"$f":"IFERROR(INDEX(JaloaneFoaieDeParcurs[],Jaloane!$B4+$B$17,2),\"\")","v":-2}]
[null,{"$f":"IFERROR(IF(LEN(Jaloane!D5)=0,\"\",INDEX(JaloaneFoaieDeParcurs[],Jaloane!$B5+$B$17,3)),\"\")","v":"2018-07-29"},{"$f":"IFERROR(IF(LEN(Jaloane!E5)=0,\"\",INDEX(JaloaneFoaieDeParcurs[],Jaloane!$B5+$B$17,4)),\"\")","v":"Dezvoltare prezentare afacere\nactivitatea 1\nactivitatea 2"},{"$f":"IFERROR(INDEX(JaloaneFoaieDeParcurs[],Jaloane!$B5+$B$17,2),\"\")","v":1}]
[null,{"$f":"IFERROR(IF(LEN(Jaloane!D6)=0,\"\",INDEX(JaloaneFoaieDeParcurs[],Jaloane!$B6+$B$17,3)),\"\")","v":"2018-08-28"},{"$f":"IFERROR(IF(LEN(Jaloane!E6)=0,\"\",INDEX(JaloaneFoaieDeParcurs[],Jaloane!$B6+$B$17,4)),\"\")","v":"Revizuire prezentare"},{"$f":"IFERROR(INDEX(JaloaneFoaieDeParcurs[],Jaloane!$B6+$B$17,2),\"\")","v":-1}]
[null,{"$f":"IFERROR(IF(LEN(Jaloane!D7)=0,\"\",INDEX(JaloaneFoaieDeParcurs[],Jaloane!$B7+$B$17,3)),\"\")","v":"2018-10-07"},{"$f":"IFERROR(IF(LEN(Jaloane!E7)=0,\"\",INDEX(JaloaneFoaieDeParcurs[],Jaloane!$B7+$B$17,4)),\"\")","v":"Exec start\nactivitatea 1\nactivitatea 2"},{"$f":"IFERROR(INDEX(JaloaneFoaieDeParcurs[],Jaloane!$B7+$B$17,2),\"\")","v":-0.5}]
[null,{"$f":"IFERROR(IF(LEN(Jaloane!D8)=0,\"\",INDEX(JaloaneFoaieDeParcurs[],Jaloane!$B8+$B$17,3)),\"\")","v":"2018-11-26"},{"$f":"IFERROR(IF(LEN(Jaloane!E8)=0,\"\",INDEX(JaloaneFoaieDeParcurs[],Jaloane!$B8+$B$17,4)),\"\")","v":"Exec aliniere\nactivitatea 1\nactivitatea 2\nactivitatea 3"},{"$f":"IFERROR(INDEX(JaloaneFoaieDeParcurs[],Jaloane!$B8+$B$17,2),\"\")","v":2}]
[null,{"$f":"IFERROR(IF(LEN(Jaloane!D9)=0,\"\",INDEX(JaloaneFoaieDeParcurs[],Jaloane!$B9+$B$17,3)),\"\")","v":"2019-01-25"},{"$f":"IFERROR(IF(LEN(Jaloane!E9)=0,\"\",INDEX(JaloaneFoaieDeParcurs[],Jaloane!$B9+$B$17,4)),\"\")","v":"Cumpărare de către un participant direct interesat"},{"$f":"IFERROR(INDEX(JaloaneFoaieDeParcurs[],Jaloane!$B9+$B$17,2),\"\")","v":0.5}]
[null,{"$f":"IFERROR(IF(LEN(Jaloane!D10)=0,\"\",INDEX(JaloaneFoaieDeParcurs[],Jaloane!$B10+$B$17,3)),\"\")","v":"2019-04-05"},{"$f":"IFERROR(IF(LEN(Jaloane!E10)=0,\"\",INDEX(JaloaneFoaieDeParcurs[],Jaloane!$B10+$B$17,4)),\"\")","v":"Selecție resursă"},{"$f":"IFERROR(INDEX(JaloaneFoaieDeParcurs[],Jaloane!$B10+$B$17,2),\"\")","v":-1}]
[null,{"$f":"IFERROR(IF(LEN(Jaloane!D11)=0,\"\",INDEX(JaloaneFoaieDeParcurs[],Jaloane!$B11+$B$17,3)),\"\")","v":"2019-06-24"},{"$f":"IFERROR(IF(LEN(Jaloane!E11)=0,\"\",INDEX(JaloaneFoaieDeParcurs[],Jaloane!$B11+$B$17,4)),\"\")","v":"Creare echipă\nactivitatea 1 "},{"$f":"IFERROR(INDEX(JaloaneFoaieDeParcurs[],Jaloane!$B11+$B$17,2),\"\")","v":0.5}]
[null,{"$f":"IFERROR(IF(LEN(Jaloane!D12)=0,\"\",INDEX(JaloaneFoaieDeParcurs[],Jaloane!$B12+$B$17,3)),\"\")","v":"2019-09-22"},{"$f":"IFERROR(IF(LEN(Jaloane!E12)=0,\"\",INDEX(JaloaneFoaieDeParcurs[],Jaloane!$B12+$B$17,4)),\"\")","v":"Start echipă\nactivitatea 1 \nactivitatea 2\nactivitatea 3\nactivitatea 4"},{"$f":"IFERROR(INDEX(JaloaneFoaieDeParcurs[],Jaloane!$B12+$B$17,2),\"\")","v":-2}]
[]
["Posibilitatea de a defila prin foaia de parcurs are la bază o valoare incrementală. Titlul pentru această posibilitate se află în celula B15.\nUn tabel cu un antet și o singură valoare se află în celulele B16 și B17.\nContinuați cu celula A19 pentru instrucțiunile următoare.","Capacitate de defilare"]
[null,"Incrementare rând"]
[null,0]
[]
["În diagrama Foaie de parcurs sunt reprezentați grafic anii pentru cronologie. În acest scop, anii trebuie să fie capturați din Lista jalon. \nTitlul pentru această secțiune este „An” în celula B19. \nValorile anului se generează automat în celulele C20 până la C22.\nAvertisment: Ștergerea sau modificarea acestor ani poate afecta acuratețea trasării diagramei Foaie de parcurs.\nContinuați cu celula A24 pentru instrucțiunile următoare.","An"]
[null,{"$f":"IFERROR(YEAR(B4),\"\")","v":2018},"<-- anul pentru poziția de început a foii de parcurs"]
[null,{"$f":"IFERROR(IF(YEAR($B$9)=$B$20,\"\",YEAR($B$9)),\"\")","v":""},"<-- anul pentru perioada de mijloc a foii de parcurs; rețineți, acesta ar putea fi necompletat dacă este același an ca la poziția de început a foii de parcurs"]
[null,{"$f":"IFERROR(IF(YEAR($B$13)=$B$20,\"\",YEAR($B$13)),\"\")","v":2019},"<-- anul pentru ultima poziție a foii de parcurs; rețineți, acesta ar putea fi necompletat dacă este același an ca la poziția de început a foii de parcurs"]
[]
["Marcatoarele inelare din diagrama Foaie de parcurs conțin date din conținutul diagramei dinamice din această foaie de lucru. Datele sunt Prima dată în celula C24, Data de mijloc în celula C25 și ultima dată în celula C26.\nNu există instrucțiuni suplimentare în această foaie de lucru.","Prima dată",{"$f":"B4","v":"2018-06-29"}]
[null,"Data de mijloc",{"$f":"B9","v":"2018-11-26"}]
[null,"Ultima dată",{"$f":"B13","v":"2019-09-22"}]